{"text_format":"1","workbook":"xlsx","n_sheets":3,"sheets":["3&4","Nursery 3&4 Maintained","School List"],"not_rendered":{"charts":0,"images":1,"macros":1,"external_links":8,"defined_names":149,"comments":2,"pivot_tables":0},"unopened":[],"bounds":{"document_bytes":16777216,"sheet_cells":100000,"rows_first":2000,"rows_last":500,"rows_between":2000,"halvings":0,"cell_chars":16384,"cell_head_chars":4096},"cells_cut":0,"cells_raw":0,"read":"whole","date_system":"1900"}

{"sheet":"3&4","index":0,"n_rows":96,"n_cols":17,"rows_kept":96,"cut":false,"hidden":false,"merged":[[33,1,33,3],[1,1,2,9],[1,11,2,12],[26,1,26,3],[16,1,16,3],[17,1,17,3],[18,1,18,3]]}
[]
[null,"Funded Early Learning - 3 & 4 Year Olds - Maintained Schools\nAutumn 2024 - Revised Indicative Budget "]
[]
[]
[null,"Provider::"]
[null,1]
[null,"INTEGRA No:",null,{"$f":"VLOOKUP(B6,C69:D434,2,FALSE)","v":"0047234000"}]
[]
[null,"Funding Rate per pupil hour £"]
[null,"Base Rate Funding per Pupil £ (as at 1/4/24)",null,null,null,null,null,null,5.0599999999999996]
[null,"Deprivation Hourly Base Rate £",null,null,null,null,null,null,{"$f":"VLOOKUP($D$7,'[4]Autumn 24'!$B:$L,11,FALSE)-I10","v":0.3100000000000005},null,null,null,null,null,null,"Internal checks"]
[null,"FEL Funding Hourly Rate (1/4/24 to 31/8/24)",null,null,null,null,null,null,{"$f":"VLOOKUP(D7,'[5]Summer 24'!$B:$L,11,FALSE)","v":5.37},null,null,null,null,null,{"$f":"VLOOKUP($D$7,'[4]Autumn 24'!$B:$L,11,FALSE)-I12","v":0},{"$f":"VLOOKUP($D$7,'[6]2022 23'!$B:$L,11,FALSE)-I12","v":-0.62000000000000011},"Check the Provider FEL rate"]
[]
[null,"Increased FEL Hourly Rate including EYBG* (payable from 1/9/24 to 31/3/25) ",null,null,null,null,null,null,{"$f":"VLOOKUP($D$7,'[4]Autumn 24'!$B:$M,12,FALSE)","v":5.48},null,null,null,null,null,{"$f":"VLOOKUP($D$7,'[4]Autumn 24'!$B:$M,12,FALSE)-I14","v":0}]
[]
[null,"Funding Breakdown",null,null,"Hours",null,"£/Hour",null,"Indicative Funding £"]
[null,"Summer Term 2024 ACTUAL Universal Hours",null,null,{"$f":"ROUND(VLOOKUP($D$7,'[4]Autumn 24'!$B:$K,4,FALSE),0)","v":5850},null,{"$f":"I12","v":5.37},null,{"$f":"E17*G17","v":31414.5}]
[null,"Autumn Term 2024 ACTUAL Universal Hours",null,null,{"$f":"ROUND(VLOOKUP($D$7,'[4]Autumn 24'!$B:$K,6,FALSE),0)","v":3675},null,{"$f":"I14","v":5.48},null,{"$f":"E18*G18","v":20139}]
[null,"Spring Term 2025 Forecast Universal Hours",null,null,{"$f":"ROUND(VLOOKUP($D$7,'[4]Autumn 24'!$B:$K,8,FALSE),0)","v":5370},null,{"$f":"I14","v":5.48},null,29427.600000000002,null,null,null,null,null,null,{"$f":"VLOOKUP($D$7,'[6]2022 23'!$B:$K,10,FALSE)-E25","v":-7110},"Check total forecast FEL hours"]
[]
[null,"Summer Term 2024 ACTUAL EFE Hours",null,null,{"$f":"ROUND(VLOOKUP($D$7,'[4]Autumn 24'!$B:$L,5,FALSE),0)","v":2730},null,{"$f":"I12","v":5.37},null,14660.1,null,null,null,null,null,null,{"$f":"I12-G25","v":5.37},"Check FEL rate"]
[null,"Autumn Term 2024 ACTUAL EFE Hours",null,null,{"$f":"ROUND(VLOOKUP($D$7,'[4]Autumn 24'!$B:$K,7,FALSE),0)","v":1785},null,{"$f":"I14","v":5.48},null,9781.8000000000011,null,null,null,null,null,null,{"$f":"E25*G25-I25","v":-120794.40000000002},"Check revised ind budget"]
[null,"Spring Term 2025 Forecast EFE Hours",null,null,{"$f":"ROUND(VLOOKUP($D$7,'[4]Autumn 24'!$B:$K,9,FALSE),0)","v":2805},null,{"$f":"I14","v":5.48},null,15371.400000000001]
[]
[null,"Funding Based on Indicative Hours:",null,null,{"$f":"SUM(E17:E23)","v":22215},null,null,null,{"$f":"SUM(I17:I23)","v":120794.40000000002}]
[null,null,null,null,{"$f":"VLOOKUP($D$7,'[4]Autumn 24'!$B:$N,10,FALSE)-E25","v":0},null,null,null,{"$f":"VLOOKUP($D$7,'[4]Autumn 24'!$B:$N,13,FALSE)-I25","v":0}]
[null,"Early Years Pupil Premium (EYPP) Funding Breakdown (payable on universal hours only)",null,null,"Hours",null,"£/Hour",null,"Indicative Funding £"]
[null,"Summer Term 2024 EYPP ACTUAL",null,null,{"$f":"VLOOKUP($D$7,'[4]Autumn 24'!$B:$AG,22,FALSE)","v":3315},null,0.68,null,{"$f":"E28*G28","v":2254.2000000000003},null,null,null,null,null,{"$f":"VLOOKUP($D$7,'[4]Autumn 24'!$B:$AG,23,FALSE)-I28","v":0},{"$f":"VLOOKUP($D$7,'[6]2022 23'!$B:$AF,21,FALSE)-E32","v":-2640},"Check total forecast EYPP hours"]
[null,"Autumn Term 2024 EYPP ACTUAL ",null,null,{"$f":"VLOOKUP($D$7,'[4]Autumn 24'!$B:$AX,39,FALSE)","v":1470},null,0.68,null,{"$f":"E29*G29","v":999.6},null,null,null,null,null,{"$f":"VLOOKUP($D$7,'[4]Autumn 24'!$B:$AX,40,FALSE)-I29","v":0}]
[null,"Spring Term 2025 EYPP Forecast ",null,null,0,null,0.68,null,0]
[null,null,null,null,null,null,null,null,null,null,null,null,null,null,null,{"$f":"#REF!*#REF!-#REF!","v":{"$error":"#REF!"}},"Check revised ind budget EYPP"]
[null,"Indicative Funding for Early Years Pupil Premium:",null,null,{"$f":"SUM(E28:E30)","v":4785},null,null,null,{"$f":"SUM(I28:I30)","v":3253.8},null,null,null,null,null,{"$f":"E32*G30-I32","v":0}]
[]
[null,"Disability Access Funding Breakdown:",null,null,"Pupils",null,"£/Annual",null,"DA Funding"]
[null,"Summer Term 2024 Actual",null,null,{"$f":"IFERROR(VLOOKUP($D$7,'[4]Autumn 24'!$B:$AG,24,FALSE),0)","v":0},null,910,null,{"$f":"E35*G35","v":0},null,null,null,null,null,{"$f":"IFERROR(VLOOKUP($D$7,'[4]Autumn 24'!$B:$AG,25,FALSE),0)-I35","v":0},{"$f":"VLOOKUP($D$7,'[6]2022 23'!$B:$AF,23,FALSE)","v":0},"Check total forecast DAF hours"]
[null,"Autumn Term 2024 ACTUAL ",null,null,{"$f":"IFERROR(VLOOKUP($D$7,'[4]Autumn 24'!$B:$AX,41,FALSE),0)","v":0},null,910,null,{"$f":"E36*G36","v":0},null,null,null,null,null,{"$f":"IFERROR(VLOOKUP($D$7,'[4]Autumn 24'!$B:$AX,42,FALSE),0)-I36","v":0}]
[null,"Spring Term 2025 Forecast",null,null,0,null,910,null,{"$f":"E37*G37","v":0}]
[null,null,null,null,null,null,null,null,null,null,null,null,null,null,null,{"$f":"E39*G39-I39","v":0},"Check revised ind budget DAF"]
[null,"Total Disability Access Funding to date",null,null,{"$f":"SUM(E35:E37)","v":0},null,null,null,{"$f":"SUM(I35:I37)","v":0},null,null,null,null,null,{"$f":"E39*G37-I39","v":0}]
[]
[null,"FEL Spring Term 2024 Adjustment Payment",null,null,null,null,null,null,"Indicative Funding £"]
[null,"FEL Spring Term 2024 Adjustment Payment",null,null,null,null,null,null,{"$f":"VLOOKUP($D$7,'[4]Autumn 24'!$B:$AG,18,FALSE)","v":0},null,null,null,null,null,{"$f":"VLOOKUP($D$7,'[4]Autumn 24'!$B:$AG,18,FALSE)-I42","v":0}]
[null,"FEL Summer Term 2024 Adjustment Payment",null,null,null,null,null,null,{"$f":"VLOOKUP($D$7,'[4]Autumn 24'!$B:$AI,34,FALSE)","v":0},null,null,null,null,null,{"$f":"VLOOKUP($D$7,'[4]Autumn 24'!$B:$AI,34,FALSE)-I43","v":0}]
[null,"Providers will received an email from the EY Funding Team detailing any ajdustment payments. Please note that funding may be adjusted at a previous hourly funding rate."]
[]
[null,"Maintained Nursery School Funding (MNS)",null,null,null,null,null,null,{"$f":"IFERROR(VLOOKUP($D$7,'[4]Autumn 24'!$B:$Q,16,FALSE),0)","v":0},null,null,null,null,null,{"$f":"IFERROR(VLOOKUP($D$7,'[5]Summer 24'!$B:$P,15,FALSE),0)-I46","v":0}]
[]
[null,"Indicative Funding for 2024/25 to date (purely based on FEL hours)",null,null,null,null,null,null,"Indicative Funding £"]
[null,"FEL Funding only",null,null,null,null,null,null,{"$f":"I25","v":120794.40000000002}]
[null,"Total Revised Indicative Budget 2024/25",null,null,null,null,null,null,{"$f":"SUM(I49:I49)","v":120794.40000000002},null,null,null,null,null,{"$f":"VLOOKUP($D$7,'[4]Autumn 24'!$B:$N,13,FALSE)-I50","v":0}]
[]
[null,"*Early Years Budget Grant (EYBG) payable at £0.11 or £0.50 (MNS) per hour from 1/9/24 to 31/3/25"]
[]
[null,"Note: This is the Autumn 2024 revised indicative budget produced to assist you in updating financial records. "]
[null,"This revised indicative budget has been updated to include Summer & Autumn 24 actual FEL data claimed. "]
[null,"There will be no change to cash advances to Maintained Schools as a result of this data set."]
[]
[]
[null,"Note: This is an indicative budget which is produced to assist FEL Providers with a tool for budgeting FEL income. This indicative budget is based on actual hours"]
[null,"of participation in Spring 19, Summer 19 and Autumn 19 and has been adjusted for the number of weeks in the 2020/21 terms. FEL Providers will be paid for "]
[null,"actual pupil participation hours of attendance in Summer 2020, Autumn 2020 and Spring 2021, using the £ per hour rate shown above."]
[]
[]
[null,"Any queries please contact: Lorraine.fox@sheffield.gov.uk"]
[null,"Telephone: 0114 474 2034"]
[]
[]
[]
[null,"Angram Bank Primary School",1,"0047234000"]
[null,"Arbourthorne Community Primary",2,"00073429"]
[null,"Ballifield Primary School",3,"00072281"]
[null,"Beighton Nursery Infant School",4,"00072241"]
[null,"Brightside Nursery and Infant School",5,"07201400"]
[null,"Broomhall",6,"07100000"]
[null,"Brunswick Primary School",7,"00072325"]
[null,"Carfield Primary School",8,"07234400"]
[null,"Dobcroft Infant School (FEL)",9,"07228300"]
[null,"Dore Pre-School",10,"07236400"]
[null,"Grace Owen",11,"00071002"]
[null,"Halfway Nursery Infant School",12,"00072252"]
[null,"Meersbrook Bank Primary School",13,"00072081"]
[null,"Netherthorpe Primary School",14,"00072272"]
[null,"Pipworth Community Primary School",15,"00073433"]
[null,"Prince Edward Primary School",16,"00072347"]
[null,"Reignhead Primary School",17,"00072334"]
[null,"Rivelin Primary School",18,"00072338"]
[null,"Royd Nursery Infant School",19,"00072306"]
[null,"Sharrow Primary School",20,"00072369"]
[null,"Shooter's Grove Primary School",21,"00072349"]
[null,"Shortbrook Primary (Ladybirds)",22,"00072360"]
[null,"St Theresa's Catholic Primary School",23,"00075208"]
[null,"Stradbroke Primary School",24,"00072350"]
[null,"Walkley Primary School",25,"00072351"]
[null,"Watercliffe Meadow Primary",26,"00073432"]
[null,"Waterthorpe Nursery Infant School",27,"00072319"]
[null,"Westways Primary School",28,"00072352"]

{"sheet":"Nursery 3&4 Maintained","index":1,"n_rows":96,"n_cols":14,"rows_kept":96,"cut":false,"hidden":true,"merged":[[1,1,2,9],[1,11,2,12],[24,1,24,3]]}
[]
[null,"Nursery Free Entitlement Funding 3 & 4 Year Olds\nIndicative Budget 2018-19"]
[]
[]
[null,"Provider::"]
[null,40]
[null,"INTEGRA No:",null,{"$f":"VLOOKUP(B6,C57:D96,2,FALSE)","v":"00072327"}]
[]
[]
[null,"Funding Rate per pupil hour £"]
[null,"Base Rate Funding per Pupil £",null,null,null,null,null,null,4.07]
[null,"Deprivation Hourly Base Rate £",null,null,null,null,null,null,{"$f":"VLOOKUP($D$7,'[7]1819'!$C:$AB,25,FALSE)","v":105569.7}]
[null,"2018/19 Hourly FEL Rate",null,null,null,null,null,null,{"$f":"VLOOKUP($D$7,'[7]1819'!$C:$AL,36,FALSE)","v":120515.84199999999},null,null,{"$f":"VLOOKUP($D$7,'[8]Budget Build'!$C:$AL,35,FALSE)-I13","v":{"$error":"#N/A"}}]
[null,null,null,null,null,null,null,null,{"$f":"SUM(I11:I12)-I13","v":-14942.071999999986}]
[]
[null,"Funding Breakdown",null,null,"Hours",null,"£/Hour",null,"Indicative Funding £"]
[]
[null,"Summer Term (2018) Forecast",null,null,{"$f":"VLOOKUP($D$7,'[7]1819'!$C:$T,15,FALSE)","v":0}]
[null,"Autumn Term (2018) Forecast",null,null,{"$f":"VLOOKUP($D$7,'[7]1819'!$C:$T,16,FALSE)","v":11067}]
[null,"Spring Term (2019) Forecast",null,null,{"$f":"VLOOKUP($D$7,'[7]1819'!$C:$T,17,FALSE)","v":7086.8}]
[]
[null,"Funding Based on Indicative Hours:",null,null,{"$f":"SUM(E18:E21)","v":18153.8},null,{"$f":"I22/E22","v":0.41596635415174787},null,{"$f":"VLOOKUP($D$7,'[7]1819'!$C:$AC,27,FALSE)","v":7551.37},null,null,{"$f":"E22*G22-I22","v":0},null,"`"]
[null,null,null,null,{"$f":"VLOOKUP($D$7,'[7]1819'!$C:$T,18,FALSE)-E22","v":-10369.099999999999},null,null,null,{"$f":"E22*G22-I22","v":0}]
[]
[null,"Early Years Pupil Premium (EYPP) Funding Breakdown",null,null,"Hours",null,"£/Hour",null,"Indicative Funding £"]
[]
[null,"Summer Term (2018) EYPP Forecast",null,null,{"$f":"VLOOKUP($D$7,'[7]1819'!$C:$AH,28,FALSE)","v":113121.06999999999}]
[null,"Autumn Term (2018) EYPP Forecast",null,null,{"$f":"VLOOKUP($D$7,'[7]1819'!$C:$AH,29,FALSE)","v":5913}]
[null,"Spring Term (2019) EYPP Forecast",null,null,{"$f":"VLOOKUP($D$7,'[7]1819'!$C:$AH,30,FALSE)","v":3082.7999999999997}]
[]
[null,"Funding for Early Years Pupil Premium:",null,null,{"$f":"SUM(E27:E29)","v":122116.87},null,0.53,null,{"$f":"IF(ISERROR(E31*G31),2,E31*G31)","v":64721.941100000004}]
[null,null,null,null,null,null,null,null,{"$f":"VLOOKUP($D$7,'[7]1819'!$C:$AH,32,FALSE)-I31","v":-50769.541100000002}]
[]
[null,"Indicative Funding consists of:"]
[null,"Base Funding at £4.07 per hour",null,null,null,null,null,null,{"$f":"VLOOKUP($D$7,'[7]1819'!$C:$AB,24,FALSE)","v":0},null,null,{"$f":"E22*I11-I35","v":73885.966}]
[null,"Deprivation Funding at £0.30 per hour",null,null,null,null,null,null,{"$f":"VLOOKUP($D$7,'[7]1819'!$C:$AB,26,FALSE)","v":0.28999999999999998},null,null,{"$f":"E22*I12-I36","v":1916491219.5699999}]
[null,"EYPP Funding at £0.53 per hour",null,null,null,null,null,null,{"$f":"VLOOKUP($D$7,'[7]1819'!$C:$AH,32,FALSE)","v":13952.4},null,null,{"$f":"E31*G31-I37","v":50769.541100000002}]
[null,"Maintained Nursery School Supplement",null,null,null,null,null,null,{"$f":"VLOOKUP($D$7,'[7]1819'!$C:$AJ,34,FALSE)","v":120515.84199999999}]
[null,"Total Indicative Budget 2018/19",null,null,null,null,null,null,{"$f":"VLOOKUP($D$7,'[7]1819'!$C:$AK,35,FALSE)","v":0},null,null,{"$f":"E22*G22+E31*G31-I39","v":72273.311100000006}]
[null,null,null,null,null,null,null,null,{"$f":"SUM(I35:I38)-I39","v":134468.53199999998}]
[]
[null,"Standard Number of weeks in each term",null,null,null,null,null,null,"Weeks"]
[null,"Summer Term 2018 ",null,null,null,null,null,null,13]
[null,"Autumn Term 2018 ",null,null,null,null,null,null,14]
[null,"Spring Term 2019",null,null,null,null,null,null,11]
[null,null,null,null,null,null,null,null,{"$f":"SUM(I43:I45)","v":38}]
[]
[]
[null,"Note: This is an indicative budget only and Providers will actually be paid on the basis of participation pupil hours of attendance in Summer 2018"]
[null,"Autumn 2018 and Spring 2019, using the £ per hour rate shown above plus any actual EYPP hours and any DAF pupils."]
[null,"Maintained Schools: This budget will be used for your cash advance."]
[]
[]
[null,"Any queries please contact:  lorraine.fox@sheffield.gov.uk"]
[null,"Telephone: 2735817"]
[]
[null,"Angram Bank Primary School",1,"00072342"]
[null,"Anns Grove Primary School",2,"00072343"]
[null,"Arbourthorne Community Primary",3,"00073429"]
[null,"Ballifield Primary School",4,"00072281"]
[null,"Bankwood Primary (FEL previously at YCC)",5,"00072322"]
[null,"Beighton Nursery Infant School",6,"00072241"]
[null,"Brightside Nursery and Infant School",7,"07201400"]
[null,"Broomhall",8,"07100000"]
[null,"Brunswick Primary School",9,"00072325"]
[null,"Carfield Primary School",10,"07234400"]
[null,"Gleadless Primary School",11,"07203600"]
[null,"Grace Owen",12,"00071002"]
[null,"Halfway Nursery Infant School",13,"00072252"]
[null,"Malin Bridge Primary School",14,"07235800"]
[null,"Meersbrook Bank Primary School",15,"00072081"]
[null,"Netherthorpe Primary School",16,"00072272"]
[null,"Norfolk Community Primary School",17,"00072000"]
[null,"Owler Brook Nursery and Infant School",18,"00072093"]
[null,"Pipworth Community Primary School",19,"00073433"]
[null,"Prince Edward Primary School",20,"00072347"]
[null,"Pye Bank CE Primary School",21,"00072366"]
[null,"Reignhead Primary School",22,"00072334"]
[null,"Rivelin Primary School",23,"00072338"]
[null,"Royd Nursery Infant School",24,"00072306"]
[null,"Sharrow Primary School",25,"00072369"]
[null,"Shooter's Grove Primary School",26,"00072349"]
[null,"Shortbrook Primary (Ladybirds)",27,"00072360"]
[null,"Springfield Primary School",28,"00072329"]
[null,"St Theresa's Catholic Primary School",29,"00075208"]
[null,"Stocksbridge Nursery Infant School",30,"00072302"]
[null,"Stradbroke Primary School",31,"00072350"]
[null,"Walkley Primary School",32,"00072351"]
[null,"Watercliffe Meadow Primary",33,"00073432"]
[null,"Waterthorpe Nursery Infant School",34,"00072319"]
[null,"Westways Primary School",35,"00072352"]
[null,"Wharncliffe Side Primary School",36,"00072311"]
[null,"Whiteways Primary School",37,"00072040"]
[null,"Woodhouse West Primary School",38,"00072139"]
[null,"Woodseats Primary School",39,"00072324"]
[null,"Woodthorpe Community Primary School",40,"00072327"]

{"sheet":"School List","index":2,"n_rows":174,"n_cols":25,"rows_kept":174,"cut":false,"hidden":true,"merged":[]}
[null,null,2,null,6,1,null,3,4,5,7,8,9]
["LxSTAB","URN","School_Name","Ref","OEO BU","DfE","Prev DfE","Academy Type ","Phase",null,"Family of Schools"]
[3732001,106982,"Abbey Lane Primary School",null,"72001",2001,null,0,"Primary","Maintained Primary","Meadowhead",null,0,null,3732001,"Abbey Lane Primary School","Maintained Primary","pri",0,null,3732001,"Abbey Lane Primary School","Primary",0,0]
[3732318,107063,"Acres Hill Community Primary School",null,"72318",2318,null,0,"Primary","Maintained Primary","Park Academy",null,0,null,3732318,"Acres Hill Community Primary School","Maintained Primary","pri",0,null,3732318,"Acres Hill","Primary",0,0]
[3732342,107085,"Angram Bank Primary School",null,"72342",2342,null,0,"Primary","Maintained Primary","Ecclesfield",null,0,null,3732342,"Angram Bank Primary School","Maintained Primary","pri",0,null,3732342,"Angram Bank Primary School","Primary",0,0]
[3732343,107086,"Anns Grove Primary School",null,"72343",2343,null,0,"Primary","Maintained Primary","Newfield",null,0,null,3732343,"Anns Grove Primary School","Maintained Primary","pri",0,null,3732343,"Anns Grove Primary School","Primary",0,0]
[3733429,133994,"Arbourthorne Community Primary School",null,"73429",3429,null,0,"Primary","Maintained Primary","Springs Academy",null,0,null,3733429,"Arbourthorne Community Primary School","Maintained Primary","pri",0,null,3733429,"Arbourthorne Community Primary","Primary",0,0]
[3732340,107083,"Athelstan Primary School",null,"72340",2340,null,0,"Primary","Maintained Primary","Handsworth Grange",null,0,null,3732340,"Athelstan Primary School","Maintained Primary","pri",0,null,3732340,"Athelstan Primary School","Primary",0,0]
[3732281,107047,"Ballifield Primary School",null,"72281",2281,null,0,"Primary","Maintained Primary","Handsworth Grange",null,0,null,3732281,"Ballifield Primary School","Maintained Primary","pri",0,null,3732281,"Ballifield Primary","Primary",0,0]
[3732322,107066,"Bankwood Community Primary School",null,"72322",2322,null,0,"Primary","Maintained Primary","Newfield",null,0,null,3732322,"Bankwood Community Primary School","Maintained Primary","pri",0,null,3732322,"Bankwood Primary School","Primary",0,0]
[3732274,107044,"Beck Primary School",null,"72274",2274,null,0,"Primary","Maintained Primary","Firth Park",null,0,null,3732274,"Beck Primary School","Maintained Primary","pri",0,null,3732274,"Beck Primary School","Primary",0,0]
[3732241,107036,"Beighton Nursery and Infant School",null,"72241",2241,null,0,"Primary","Maintained Primary","Westfield",null,0,null,3732241,"Beighton Nursery and Infant School","Maintained Primary","pri",0,null,3732241,"Beighton Nursery and Infants","Primary",0,0]
[3732353,107096,"Birley Community Primary School",null,"72353",2353,null,0,"Primary","Maintained Primary","Birley",null,0,null,3732353,"Birley Community Primary School","Maintained Primary","pri",0,null,3732353,"Birley Primary School","Primary",0,0]
[3732323,107067,"Birley Spa Community Primary School",null,"72323",2323,null,0,"Primary","Maintained Primary","Birley",null,0,null,3732323,"Birley Spa Community Primary School","Maintained Primary","pri",0,null,3732323,"Birley Spa Community Primary","Primary",0,0]
[3732328,107072,"Bradfield Dungworth Primary School",null,"72328",2328,null,0,"Primary","Maintained Primary","Bradfield",null,0,null,3732328,"Bradfield Dungworth Primary School","Maintained Primary","pri",0,null,3732328,"Bradfield Dungworth","Primary",0,0]
[3732233,107033,"Bradway Primary School",null,"72233",2233,null,0,"Primary","Maintained Primary","Meadowhead",null,0,null,3732233,"Bradway Primary School","Maintained Primary","pri",0,null,3732233,"Bradway Primary","Primary",0,0]
[3732014,106987,"Brightside Nursery and Infant School",null,"72014",2014,null,0,"Primary","Maintained Primary","Hinde House",null,0,null,3732014,"Brightside Nursery and Infant School","Maintained Primary","pri",0,null,3732014,"Brightside Nursery Inf School","Primary",0,0]
[3732246,107037,"Brook House Junior School",null,"72246",2246,null,0,"Primary","Maintained Primary","Westfield",null,0,null,3732246,"Brook House Junior School","Maintained Primary","pri",0,null,3732246,"Brook House Junior School","Primary",0,0]
[3735204,107154,"Broomhill Infant School",null,"75204",5204,null,0,"Primary","Maintained Primary","King Edward",null,0,null,3735204,"Broomhill Infant School","Maintained Primary","pri",0,null,3735204,"Broomhill Infant School","Primary",0,0]
[3732325,107069,"Brunswick Community Primary School",null,"72325",2325,null,0,"Primary","Maintained Primary","Handsworth Grange",null,0,null,3732325,"Brunswick Community Primary School","Maintained Primary","pri",0,null,3732325,"Brunswick Community Primary","Primary",0,0]
[3732095,107008,"Byron Wood Primary School",null,"72095",2095,null,0,"Primary","Maintained Primary","Fir Vale",null,0,null,3732095,"Byron Wood Primary School","Maintained Primary","pri",0,null,3732095,"Byron Wood","Primary",0,0]
[3732344,107087,"Carfield Primary School",null,"72344",2344,null,0,"Primary","Maintained Primary","Newfield",null,0,null,3732344,"Carfield Primary School","Maintained Primary","pri",0,null,3732344,"Carfield Primary School","Primary",0,0]
[3732023,106988,"Carter Knowle Junior School",null,"72023",2023,null,0,"Primary","Maintained Primary","King Ecgbert",null,0,null,3732023,"Carter Knowle Junior School","Maintained Primary","pri",0,null,3732023,"Carter Knowle Junior","Primary",0,0]
[3732354,107097,"Charnock Hall Primary School",null,"72354",2354,null,0,"Primary","Maintained Primary","Birley",null,0,null,3732354,"Charnock Hall Primary School","Maintained Primary","pri",0,null,3732354,"Charnock Hall Primary School","Primary",0,0]
[3735200,107150,"Clifford CofE Infant School",null,"75200",5200,null,0,"Primary","Maintained Primary","King Edward",null,0,null,3735200,"Clifford CofE Infant School","Maintained Primary","pri",0,null,3735200,"Clifford C of E Infant School","Primary",0,0]
[3732312,107060,"Coit Primary School",null,"72312",2312,null,0,"Primary","Maintained Primary","Ecclesfield",null,0,null,3732312,"Coit Primary School","Maintained Primary","pri",0,null,3732312,"Coit Primary","Primary",0,0]
[3732026,107041,"Concord Junior School",null,"62026",2026,2263,"Recoupment Academy","Primary","Mainstream Academy","Hinde House",null,2263,null,3732026,"Concord Junior School","Mainstream Academy","pri",0,null,3732026,"Concord Junior School","Primary","Recoupment Academy",0]
[3733422,107117,"Deepcar St John's Church of England Junior School",null,"73422",3422,null,0,"Primary","Maintained Primary","Stocksbridge",null,0,null,3733422,"Deepcar St John's Church of England Junior School","Maintained Primary","pri",0,null,3733422,"Deepcar St John's C E Jnr Sch","Primary",0,0]
[3732283,107048,"Dobcroft Infant School",null,"72283",2283,null,0,"Primary","Maintained Primary","Silverdale",null,0,null,3732283,"Dobcroft Infant School","Maintained Primary","pri",0,null,3732283,"Dobcroft Infant School","Primary",0,0]
[3732239,107035,"Dobcroft Junior School",null,"72239",2239,null,0,"Primary","Maintained Primary","Silverdale",null,0,null,3732239,"Dobcroft Junior School","Maintained Primary","pri",0,null,3732239,"Dobcroft Junior School","Primary",0,0]
[3732364,132152,"Dore Primary School",null,"72364",2364,null,0,"Primary","Maintained Primary","King Ecgbert",null,0,null,3732364,"Dore Primary School","Maintained Primary","pri",0,null,3732364,"Dore Primary School","Primary",0,0]
[3733008,107105,"Ecclesall Church of England Junior School",null,"73008",3008,null,0,"Primary","Maintained Primary","High Storrs",null,0,null,3733008,"Ecclesall Church of England Junior School","Maintained Primary","pri",0,null,3733008,"Ecclesall CE Junior School","Primary",0,0]
[3732206,107025,"Ecclesall Infant School",null,"72206",2206,null,0,"Primary","Maintained Primary","High Storrs",null,0,null,3732206,"Ecclesall Infant School","Maintained Primary","pri",0,null,3732206,"Ecclesall Infant School","Primary",0,0]
[3732080,107001,"Ecclesfield Primary School",null,"72080",2080,null,0,"Primary","Maintained Primary","Ecclesfield",null,0,null,3732080,"Ecclesfield Primary School","Maintained Primary","pri",0,null,3732080,"Ecclesfield Primary School","Primary",0,0]
[3733426,107120,"Emmanuel Anglican/Methodist Junior School",null,"73426",3426,null,0,"Primary","Maintained Primary","Westfield",null,0,null,3733426,"Emmanuel Anglican/Methodist Junior School","Maintained Primary","pri",0,null,3733426,"Emmanuel Junior School (Anglican Methodist Aided)","Primary",0,0]
[3732028,134231,"Emmaus Catholic and CofE Primary School",null,"62028",2028,3430,"Recoupment Academy","Primary","Mainstream Academy","Park Academy",null,3430,null,3732028,"Emmaus Catholic and CofE Primary School","Mainstream Academy","pri",0,null,3732028,"Emmaus Catholic and Church of England Primary School","Primary","Recoupment Academy",0]
[3732365,133325,"Firs Hill Community Primary School",null,"72365",2365,null,0,"Primary","Maintained Primary","Fir Vale",null,0,null,3732365,"Firs Hill Community Primary School","Maintained Primary","pri",0,null,3732365,"Firs Hill Community Primary","Primary",0,0]
[3732010,139134,"Fox Hill Primary",null,"62010",2010,2330,"Recoupment Academy","Primary","Mainstream Academy","Yewlands",null,2330,null,3732010,"Fox Hill Primary","Mainstream Academy","pri",0,null,3732010,"Fox Hill Primary School","Primary","Recoupment Academy",0]
[3732036,106991,"Gleadless Primary School",null,"72036",2036,null,0,"Primary","Maintained Primary","Birley",null,0,null,3732036,"Gleadless Primary School","Maintained Primary","pri",0,null,3732036,"Gleadless Primary School","Primary",0,0]
[3732305,139297,"Greengate Lane Academy",null,"62305",2305,null,"Recoupment Academy","Primary","Mainstream Academy","Ecclesfield",null,0,null,3732305,"Greengate Lane Academy","Mainstream Academy","pri",0,null,3732305,"Greengate Lane Academy","Primary","Recoupment Academy",0]
[3732341,107084,"Greenhill Primary School",null,"72341",2341,null,0,"Primary","Maintained Primary","Meadowhead",null,0,null,3732341,"Greenhill Primary School","Maintained Primary","pri",0,null,3732341,"Greenhill Primary School","Primary",0,0]
[3732129,107019,"Greenlands (High Hazels) Junior School",null,"62129",2129,null,"Recoupment Academy","Primary","Mainstream Academy","Park Academy",null,0,null,3732129,"Greenlands (High Hazels) Junior School","Mainstream Academy","pri",0,null,3732129,"Greenlands Junior School","Primary",0,0]
[3732131,107020,"Greenlands (High Hazels) Nursery Infant School",null,"62131",2131,null,"Recoupment Academy","Primary","Mainstream Academy","Park Academy",null,0,null,3732131,"Greenlands (High Hazels) Nursery Infant School","Mainstream Academy","pri",0,null,3732131,"Greenlands Nursery Infants","Primary",0,0]
[3732296,107051,"Grenoside Community Primary School",null,"72296",2296,null,0,"Primary","Maintained Primary","Yewlands",null,0,null,3732296,"Grenoside Community Primary School","Maintained Primary","pri",0,null,3732296,"Grenoside Primary School","Primary",0,0]
[3732356,107098,"Greystones Primary School",null,"72356",2356,null,0,"Primary","Maintained Primary","High Storrs",null,0,null,3732356,"Greystones Primary School","Maintained Primary","pri",0,null,3732356,"GREYSTONES PRIMARY SCHOOL","Primary",0,0]
[3732279,107046,"Halfway Junior School",null,"72279",2279,null,0,"Primary","Maintained Primary","Westfield",null,0,null,3732279,"Halfway Junior School","Maintained Primary","pri",0,null,3732279,"Halfway Junior School","Primary",0,0]
[3732252,107038,"Halfway Nursery Infant School",null,"72252",2252,null,0,"Primary","Maintained Primary","Westfield",null,0,null,3732252,"Halfway Nursery Infant School","Maintained Primary","pri",0,null,3732252,"Halfway Nursery Infant School","Primary",0,0]
[3732357,107099,"Hallam Primary School",null,"72357",2357,null,0,"Primary","Maintained Primary","Tapton",null,0,null,3732357,"Hallam Primary School","Maintained Primary","pri",0,null,3732357,"Hallam Primary School","Primary",0,0]
[3732004,138512,"Hartley Brook Primary School",null,"62004",2004,null,"Recoupment Academy","Primary","Mainstream Academy","Firth Park",null,0,null,3732004,"Hartley Brook Primary School","Mainstream Academy","pri",0,null,3732004,"Hartley Brook Academy","Primary","Recoupment Academy",0]
[3732047,138127,"Hatfield Primary School",null,"62047",2047,null,"Recoupment Academy","Primary","Mainstream Academy","Firth Park",null,0,null,3732047,"Hatfield Primary School","Mainstream Academy","pri",0,null,3732047,"Hatfield Primary","Primary","Recoupment Academy",0]
[3732297,107052,"High Green Primary School",null,"72297",2297,null,0,"Primary","Maintained Primary","Ecclesfield",null,0,null,3732297,"High Green Primary School","Maintained Primary","pri",0,null,3732297,"High Green Primary School","Primary",0,0]
[3732339,107082,"Hillsborough Primary School",null,"62339",2339,null,"Recoupment Academy","Primary","Mainstream Academy","Forge Valley",null,0,null,3732339,"Hillsborough Primary School","Mainstream Academy","pri",0,null,3732339,"Hillsborough Primary School","Primary","Recoupment Academy",0]
[3732213,107026,"Holt House Infant School",null,"72213",2213,null,0,"Primary","Maintained Primary","King Ecgbert",null,0,null,3732213,"Holt House Infant School","Maintained Primary","pri",0,null,3732213,"Holt House Infant School & Children's Centre","Primary",0,0]
[3732337,107080,"Hucklow Primary School",null,"72337",2337,null,0,"Primary","Maintained Primary","Firth Park",null,0,null,3732337,"Hucklow Primary School","Maintained Primary","pri",0,null,3732337,"Hucklow Primary School","Primary",0,0]
[3732060,106995,"Hunter's Bar Infant School",null,"72060",2060,null,0,"Primary","Maintained Primary","High Storrs",null,0,null,3732060,"Hunter's Bar Infant School","Maintained Primary","pri",0,null,3732060,"Hunter's Bar Infant School","Primary",0,0]
[3732058,106994,"Hunter's Bar Junior School",null,"72058",2058,null,0,"Primary","Maintained Primary","High Storrs",null,0,null,3732058,"Hunter's Bar Junior School","Maintained Primary","pri",0,null,3732058,"Hunters Bar Junior","Primary",0,0]
[3732063,106996,"Intake Primary School",null,"72063",2063,null,0,"Primary","Maintained Primary","City",null,0,null,3732063,"Intake Primary School","Maintained Primary","pri",0,null,3732063,"Intake Primary School","Primary",0,0]
[3732261,107040,"Limpsfield Junior School",null,"72261",2261,null,0,"Primary","Maintained Primary","Hinde House",null,0,null,3732261,"Limpsfield Junior School","Maintained Primary","pri",0,null,3732261,"Limpsfield Junior School","Primary",0,0]
[3732315,139862,"Lound Infant School",null,"62315",2315,null,"Recoupment Academy","Primary","Mainstream Academy","Ecclesfield",null,0,null,3732315,"Lound Infant School","Mainstream Academy","pri",0,null,3732315,"Lound Infant School","Primary","Recoupment Academy",0]
[3732298,139863,"Lound Junior School",null,"62298",2298,null,"Recoupment Academy","Primary","Mainstream Academy","Ecclesfield",null,0,null,3732298,"Lound Junior School","Mainstream Academy","pri",0,null,3732298,"Lound Junior School","Primary","Recoupment Academy",0]
[3732029,107076,"Lowedges Primary School",null,"62029",2029,2333,"Recoupment Academy","Primary","Mainstream Academy","Meadowhead",null,2333,null,3732029,"Lowedges Primary School","Mainstream Academy","pri",0,null,3732029,"Lowedges Junior Academy","Primary","Recoupment Academy",0]
[3732368,133484,"Lower Meadow Primary School",null,"72368",2368,null,0,"Primary","Maintained Primary","Meadowhead",null,0,null,3732368,"Lower Meadow Primary School","Maintained Primary","pri",0,null,3732368,"Lower Meadow Community Primary School","Primary",0,0]
[3732070,106997,"Lowfield Community Primary School",null,"72070",2070,null,0,"Primary","Maintained Primary","King Ecgbert",null,0,null,3732070,"Lowfield Community Primary School","Maintained Primary","pri",0,null,3732070,"Lowfield Primary","Primary",0,0]
[3732292,107049,"Loxley Primary School",null,"72292",2292,null,0,"Primary","Maintained Primary","Bradfield",null,0,null,3732292,"Loxley Primary School","Maintained Primary","pri",0,null,3732292,"Loxley Primary School","Primary",0,0]
[3732072,106999,"Lydgate Infant School",null,"72072",2072,null,0,"Primary","Maintained Primary","Tapton",null,0,null,3732072,"Lydgate Infant School","Maintained Primary","pri",0,null,3732072,"Lydgate Infant School","Primary",0,0]
[3732071,106998,"Lydgate Junior School",null,"72071",2071,null,0,"Primary","Maintained Primary","Tapton",null,0,null,3732071,"Lydgate Junior School","Maintained Primary","pri",0,null,3732071,"Lydgate Junior School","Primary",0,0]
[3732358,107100,"Malin Bridge Primary School",null,"72358",2358,null,0,"Primary","Maintained Primary","Forge Valley",null,0,null,3732358,"Malin Bridge Primary School","Maintained Primary","pri",0,null,3732358,"Malin Bridge School","Primary",0,0]
[3732359,107101,"Manor Lodge Community Primary School",null,"72359",2359,null,0,"Primary","Maintained Primary","Springs Academy",null,0,null,3732359,"Manor Lodge Community Primary School","Maintained Primary","pri",0,null,3732359,"Manor Lodge Community Primary","Primary",0,0]
[3732012,139137,"Mansel Primary",null,"62012",2012,2345,"Recoupment Academy","Primary","Mainstream Academy","Yewlands",null,2345,null,3732012,"Mansel Primary","Mainstream Academy","pri",0,null,3732012,"Mansel Primary School","Primary","Recoupment Academy",0]
[3732079,107000,"Marlcliffe Community Primary School",null,"72079",2079,null,0,"Primary","Maintained Primary","Forge Valley",null,0,null,3732079,"Marlcliffe Community Primary School","Maintained Primary","pri",0,null,3732079,"Marlcliffe Primary School","Primary",0,0]
[3732081,107002,"Meersbrook Bank Primary School",null,"72081",2081,null,0,"Primary","Maintained Primary","Newfield",null,0,null,3732081,"Meersbrook Bank Primary School","Maintained Primary","pri",0,null,3732081,"Meersbrook Bank Primary School","Primary",0,0]
[3732013,139336,"Meynell Community Primary School",null,"62013",2013,2083,"Recoupment Academy","Primary","Mainstream Academy","Chaucer",null,2083,null,3732013,"Meynell Community Primary School","Mainstream Academy","pri",0,null,3732013,"Meynell Primary School","Primary","Recoupment Academy",0]
[3732346,139544,"Monteney Primary School",null,"62346",2346,null,"Recoupment Academy","Primary","Mainstream Academy","Yewlands",null,0,null,3732346,"Monteney Primary School","Mainstream Academy","pri",0,null,3732346,"Monteney Primary School","Primary","Recoupment Academy",0]
[3732257,107039,"Mosborough Primary School",null,"72257",2257,null,0,"Primary","Maintained Primary","Westfield",null,0,null,3732257,"Mosborough Primary School","Maintained Primary","pri",0,null,3732257,"Mosborough Primary School","Primary",0,0]
[3732092,107006,"Mundella Primary School",null,"72092",2092,null,0,"Primary","Maintained Primary","Newfield",null,0,null,3732092,"Mundella Primary School","Maintained Primary","pri",0,null,3732092,"Mundella Primary School","Primary",0,0]
[3732221,107029,"Nether Green Infant School",null,"72221",2221,null,0,"Primary","Maintained Primary","High Storrs",null,0,null,3732221,"Nether Green Infant School","Maintained Primary","pri",0,null,3732221,"Nether Green Infant School","Primary",0,0]
[3732087,107004,"Nether Green Junior School",null,"72087",2087,null,0,"Primary","Maintained Primary","High Storrs",null,0,null,3732087,"Nether Green Junior School","Maintained Primary","pri",0,null,3732087,"Nether Green Junior School","Primary",0,0]
[3732272,107043,"Netherthorpe Primary School",null,"72272",2272,null,0,"Primary","Maintained Primary","Tapton",null,0,null,3732272,"Netherthorpe Primary School","Maintained Primary","pri",0,null,3732272,"Netherthorpe Primary School","Primary",0,0]
[3732309,107058,"Nook Lane Junior School",null,"72309",2309,null,0,"Primary","Maintained Primary","Bradfield",null,0,null,3732309,"Nook Lane Junior School","Maintained Primary","pri",0,null,3732309,"Nook Lane Junior School","Primary",0,0]
[3732000,130335,"Norfolk Community Primary School",null,"72000",2000,null,0,"Primary","Maintained Primary","Springs Academy",null,0,null,3732000,"Norfolk Community Primary School","Maintained Primary","pri",0,null,3732000,"Norfolk Primary School","Primary",0,0]
[3733010,107106,"Norton Free Church of England Primary School",null,"73010",3010,null,0,"Primary","Maintained Primary","Newfield",null,0,null,3733010,"Norton Free Church of England Primary School","Maintained Primary","pri",0,null,3733010,"Norton Free C of E School","Primary",0,0]
[3734005,null,"Oasis - Don Valley Academy 3-16",null,"64005",4005,null,"Recoupment Academy","Primary","Mainstream Academy",0,null,0,null,null,null,null,null,null,null,3734005,"Oasis - Don Valley Academy 3-16","Primary","Recoupment Academy",-3734005]
[3732018,null,"Oasis - Fir Vale Academy",null,"62018",2018,null,"Recoupment Academy","Primary","Mainstream Academy","Fir Vale",null,0,null,null,null,null,null,null,null,3732018,"Oasis Academy Fir Vale","Primary","Recoupment Academy",-3732018]
[3732019,null,"Oasis - Watermead Academy",null,"62019",2019,null,"Recoupment Academy","Primary","Mainstream Academy",null,null,0,null,null,null,null,null,null,null,3732019,"Oasis Academy Watermead","Primary","Recoupment Academy",-3732019]
[3732313,107061,"Oughtibridge Primary School",null,"72313",2313,null,0,"Primary","Maintained Primary","Bradfield",null,0,null,3732313,"Oughtibridge Primary School","Maintained Primary","pri",0,null,3732313,"OUGHTIBRIDGE PRIMARY SCHOOL","Primary",0,0]
[3732093,107007,"Owler Brook Primary School",null,"72093",2093,null,0,"Primary","Maintained Primary","Fir Vale",null,0,null,3732093,"Owler Brook Primary School","Maintained Primary","pri",0,null,3732093,"Owler Brook","Primary",0,0]
[3733428,107107,"Parson Cross Church of England Primary School",null,"73428",3428,null,0,"Primary","Maintained Primary","Chaucer",null,0,null,3733428,"Parson Cross Church of England Primary School","Maintained Primary","pri",0,null,3733428,"Parson Cross Primary School","Primary",0,0]
[3732016,139932,"Pathways E-Act Primary Academy",null,"62016",2016,2326,"Recoupment Academy","Primary","Mainstream Academy","Parkwood",null,2326,null,3732016,"Pathways E-Act Primary Academy","Mainstream Academy","pri",0,null,3732016,"Pathways Academy E-ACT","Primary","Recoupment Academy",0]
[3732332,107075,"Phillimore Community Primary School",null,"72332",2332,null,0,"Primary","Maintained Primary","Park Academy",null,0,null,3732332,"Phillimore Community Primary School","Maintained Primary","pri",0,null,3732332,"Phillimore Comm Primary School","Primary",0,0]
[3733433,134751,"Pipworth Community Primary School",null,"73433",3433,null,0,"Primary","Maintained Primary","Park Academy",null,0,null,3733433,"Pipworth Community Primary School","Maintained Primary","pri",0,null,3733433,"Pipworth Primary School","Primary",0,0]
[3733427,139986,"Porter Croft Church of England Primary Academy",null,"63427",3427,null,"Recoupment Academy","Primary","Mainstream Academy","High Storrs",null,0,null,3733427,"Porter Croft Church of England Primary Academy","Mainstream Academy","pri",0,null,3733427,"Porter Croft C of E Primary Academy","Primary","Recoupment Academy",0]
[3732347,107090,"Prince Edward Primary School",null,"72347",2347,null,0,"Primary","Maintained Primary","Springs Academy",null,0,null,3732347,"Prince Edward Primary School","Maintained Primary","pri",0,null,3732347,"Prince Edward Primary School","Primary",0,0]
[3732366,133324,"Pye Bank CofE Primary School",null,"72366",2366,null,0,"Primary","Maintained Primary","Parkwood",null,0,null,3732366,"Pye Bank CofE Primary School","Maintained Primary","pri",0,null,3732366,"Pye Bank CofE Primary School","Primary",0,0]
[3732363,107005,"Rainbow Forge Primary School",null,"72363",2363,null,0,"Primary","Maintained Primary","Birley",null,0,null,3732363,"Rainbow Forge Primary School","Maintained Primary","pri",0,null,3732363,"Rainbow Forge","Primary",0,0]
[3732334,107077,"Reignhead Primary School",null,"72334",2334,null,0,"Primary","Maintained Primary","Westfield",null,0,null,3732334,"Reignhead Primary School","Maintained Primary","pri",0,null,3732334,"Reignhead Primary School","Primary",0,0]
[3732338,107081,"Rivelin Primary School",null,"72338",2338,null,0,"Primary","Maintained Primary","Forge Valley",null,0,null,3732338,"Rivelin Primary School","Maintained Primary","pri",0,null,3732338,"Rivelin Primary","Primary",0,0]
[3732306,107057,"Royd Nursery and Infant School",null,"72306",2306,null,0,"Primary","Maintained Primary","Stocksbridge",null,0,null,3732306,"Royd Nursery and Infant School","Maintained Primary","pri",0,null,3732306,"Royd Nursery Infant School","Primary",0,0]
[3733401,107111,"Sacred Heart Catholic Primary School",null,"63401",3401,null,"Recoupment Academy","Primary","Mainstream Academy","Forge Valley",null,0,null,3733401,"Sacred Heart Catholic Primary School","Mainstream Academy","pri",0,null,3733401,"Sacred Heart School  A Catholic Voluntary Academy","Primary","Recoupment Academy",0]
[3732369,134302,"Sharrow Nursery, Infant and Junior School",null,"72369",2369,null,0,"Primary","Maintained Primary","King Edward",null,0,null,3732369,"Sharrow Nursery, Infant and Junior School","Maintained Primary","pri",0,null,3732369,"Sharrow School","Primary",0,0]
[3732349,107092,"Shooter's Grove Primary School",null,"72349",2349,null,0,"Primary","Maintained Primary","Forge Valley",null,0,null,3732349,"Shooter's Grove Primary School","Maintained Primary","pri",0,null,3732349,"Shooters Grove","Primary",0,0]
[3732360,107102,"Shortbrook Primary School",null,"72360",2360,null,0,"Primary","Maintained Primary","Westfield",null,0,null,3732360,"Shortbrook Primary School","Maintained Primary","pri",0,null,3732360,"Shortbrook Primary","Primary",0,0]
[3732009,139133,"Southey Green Community Primary School and Nurseries",null,"62009",2009,3431,"Recoupment Academy","Primary","Mainstream Academy","Chaucer",null,3431,null,3732009,"Southey Green Community Primary School and Nurseries","Mainstream Academy","pri",0,null,3732009,"Southey Green Primary School & Nurseries","Primary","Recoupment Academy",0]
[3732329,107073,"Springfield Primary School",null,"72329",2329,null,0,"Primary","Maintained Primary","Silverdale",null,0,null,3732329,"Springfield Primary School","Maintained Primary","pri",0,null,3732329,"Springfield Primary School","Primary",0,0]
[3735202,107152,"St Ann's Catholic Primary School",null,"65202",5202,null,"Recoupment Academy","Primary","Mainstream Academy","Stocksbridge",null,0,null,3735202,"St Ann's Catholic Primary School","Mainstream Academy","pri",0,null,3735202,"St Anns Catholic Primary","Primary","Recoupment Academy",0]
[3733402,107112,"St Catherine's Catholic Primary School",null,"63402",3402,null,"Recoupment Academy","Primary","Mainstream Academy","Fir Vale",null,0,null,3733402,"St Catherine's Catholic Primary School","Mainstream Academy","pri",0,null,3733402,"St Catherine's RC NI&J School","Primary","Recoupment Academy",0]
[3732017,107151,"St John Fisher Primary - A Catholic Voluntary Academy",null,"62017",2017,5201,"Recoupment Academy","Primary","Mainstream Academy","Birley",null,5201,null,3732017,"St John Fisher Primary - A Catholic Voluntary Academy","Mainstream Academy","pri",0,null,3732017,"St John Fisher Primary - A Catholic Voluntary Academy","Primary","Recoupment Academy",0]
[3735203,139346,"St Joseph's Catholic Primary School",null,"65203",5203,null,"Recoupment Academy","Primary","Mainstream Academy","Handsworth Grange",null,0,null,3735203,"St Joseph's Catholic Primary School","Mainstream Academy","pri",0,null,3735203,"St Joseph's Primary School CVA","Primary","Recoupment Academy",0]
[3733406,138848,"St Marie's Catholic Primary School",null,"63406",3406,null,"Recoupment Academy","Primary","Mainstream Academy","King Edward",null,0,null,3733406,"St Marie's Catholic Primary School","Mainstream Academy","pri",0,null,3733406,"St Marie's School  A Catholic Voluntary Academy","Primary","Recoupment Academy",0]
[3733423,107118,"St Mary's Catholic Primary School High Green",null,"63423",3423,null,"Recoupment Academy","Primary","Mainstream Academy","Ecclesfield",null,0,null,3733423,"St Mary's Catholic Primary School High Green","Mainstream Academy","pri",0,null,3733423,"St Mary's Catholic Primary","Primary","Recoupment Academy",0]
[3732020,107109,"St Mary's Church of England Primary School",null,"62020",2020,3305,"Recoupment Academy","Primary","Mainstream Academy","King Edward",null,3305,null,3732020,"St Mary's Church of England Primary School","Mainstream Academy","pri",0,null,3732020,"St. Mary's CE Academy Walkley","Primary","Recoupment Academy",0]
[3735207,139347,"St Patrick's Catholic Voluntary Academy",null,"65207",5207,null,"Recoupment Academy","Primary","Mainstream Academy","Firth Park",null,0,null,3735207,"St Patrick's Catholic Voluntary Academy","Mainstream Academy","pri",0,null,3735207,"St Patrick's Catholic Voluntary Academy","Primary","Recoupment Academy",0]
[3735208,107158,"St Theresa's Catholic Primary School",null,"75208",5208,null,0,"Primary","Maintained Primary","Park Academy",null,0,null,3735208,"St Theresa's Catholic Primary School","Maintained Primary","pri",0,null,3735208,"St Theresa's Primary School","Primary",0,0]
[3733424,107119,"St Thomas More Catholic Primary School",null,"73424",3424,null,0,"Primary","Maintained Primary","Yewlands",null,0,null,3733424,"St Thomas More Catholic Primary School","Maintained Primary","pri",0,null,3733424,"St Thomas More Catholic School","Primary",0,0]
[3733414,138828,"St Thomas of Canterbury School, a Catholic Voluntary Academy",null,"63414",3414,null,"Recoupment Academy","Primary","Mainstream Academy","Meadowhead",null,0,null,3733414,"St Thomas of Canterbury School, a Catholic Voluntary Academy","Mainstream Academy","pri",0,null,3733414,"St Thomas of Canterbury School A Catholic Voluntary Academy","Primary","Recoupment Academy",0]
[3733412,138830,"St Wilfrid's Catholic Primary School",null,"63412",3412,null,"Recoupment Academy","Primary","Mainstream Academy","Silverdale",null,0,null,3733412,"St Wilfrid's Catholic Primary School","Mainstream Academy","pri",0,null,3733412,"St.Wilfrid's Primary School  a Catholic V.A.","Primary","Recoupment Academy",0]
[3732294,107050,"Stannington Infant School",null,"72294",2294,null,0,"Primary","Maintained Primary","Bradfield",null,0,null,3732294,"Stannington Infant School","Maintained Primary","pri",0,null,3732294,"Stannington Infant School","Primary",0,0]
[3732303,107055,"Stocksbridge Junior School",null,"72303",2303,null,0,"Primary","Maintained Primary","Stocksbridge",null,0,null,3732303,"Stocksbridge Junior School","Maintained Primary","pri",0,null,3732303,"Stocksbridge Junior School","Primary",0,0]
[3732302,107054,"Stocksbridge Nursery Infant School",null,"72302",2302,null,0,"Primary","Maintained Primary","Stocksbridge",null,0,null,3732302,"Stocksbridge Nursery Infant School","Maintained Primary","pri",0,null,3732302,"Stocksbridge Nursery/Infant","Primary",0,0]
[3732350,107093,"Stradbroke Primary School",null,"72350",2350,null,0,"Primary","Maintained Primary","City",null,0,null,3732350,"Stradbroke Primary School","Maintained Primary","pri",0,null,3732350,"Stradbroke Primary School","Primary",0,0]
[3732002,106983,"The Nether Edge Primary School",null,"72002",2002,null,0,"Primary","Maintained Primary","King Ecgbert",null,0,null,3732002,"The Nether Edge Primary School","Maintained Primary","pri",0,null,3732002,"The Nether Edge Primary School","Primary",0,0]
[3732230,107032,"Tinsley Meadows Primary",null,"72230",2230,2120,0,"Primary","Maintained Primary","Park Academy",null,2120,null,3732230,"Tinsley Junior School","Maintained Primary","pri",0,null,3732230,"Tinsley Meadows Primary School","Primary",0,0]
[3735206,107156,"Totley All Saints Church of England Voluntary Aided Primary School",null,"75206",5206,null,0,"Primary","Maintained Primary","King Ecgbert",null,0,null,3735206,"Totley All Saints Church of England Voluntary Aided Primary School","Maintained Primary","pri",0,null,3735206,"Totley All Saints CE School","Primary",0,0]
[3732203,107024,"Totley Primary School",null,"62203",2203,null,"Recoupment Academy","Primary","Mainstream Academy","King Ecgbert",null,0,null,3732203,"Totley Primary School","Mainstream Academy","pri",0,null,3732203,"Totley Primary","Primary","Recoupment Academy",0]
[3732367,133623,"Valley Park Community School",null,"72367",2367,null,0,"Primary","Maintained Primary","Meadowhead",null,0,null,3732367,"Valley Park Community School","Maintained Primary","pri",0,null,3732367,"Valley Park","Primary",0,0]
[3732351,107094,"Walkley Primary School",null,"72351",2351,null,0,"Primary","Maintained Primary","Forge Valley",null,0,null,3732351,"Walkley Primary School","Maintained Primary","pri",0,null,3732351,"Walkley Primary School","Primary",0,0]
[3733432,131082,"Watercliffe Meadow Community Primary School",null,"73432",3432,null,0,"Primary","Maintained Primary","Parkwood",null,0,null,3733432,"Watercliffe Meadow Community Primary School","Maintained Primary","pri",0,null,3733432,"Watercliffe Meadow School","Primary",0,0]
[3732319,107064,"Waterthorpe Infant School",null,"72319",2319,null,0,"Primary","Maintained Primary","Westfield",null,0,null,3732319,"Waterthorpe Infant School","Maintained Primary","pri",0,null,3732319,"WATERTHORPE NURSERY  INFANT SCHOOL","Primary",0,0]
[3732352,107095,"Westways Primary School",null,"72352",2352,null,0,"Primary","Maintained Primary","King Edward",null,0,null,3732352,"Westways Primary School","Maintained Primary","pri",0,null,3732352,"Westways Primary School","Primary",0,0]
[3732311,107059,"Wharncliffe Side Primary School",null,"72311",2311,null,0,"Primary","Maintained Primary","Bradfield",null,0,null,3732311,"Wharncliffe Side Primary School","Maintained Primary","pri",0,null,3732311,"Wharncliffe Side Primary","Primary",0,0]
[3732040,106992,"Whiteways Primary School",null,"72040",2040,null,0,"Primary","Maintained Primary","Fir Vale",null,0,null,3732040,"Whiteways Primary School","Maintained Primary","pri",0,null,3732040,"Whiteways Primary School","Primary",0,0]
[3732027,107021,"Wincobank Nursery and Infant School",null,"62027",2027,2132,"Recoupment Academy","Primary","Mainstream Academy","Hinde House",null,2132,null,3732027,"Wincobank Nursery and Infant School","Mainstream Academy","pri",0,null,3732027,"Wincobank Nursery and Infant School","Primary","Recoupment Academy",0]
[3732361,107103,"Windmill Hill Primary School",null,"72361",2361,null,0,"Primary","Maintained Primary","Ecclesfield",null,0,null,3732361,"Windmill Hill Primary School","Maintained Primary","pri",0,null,3732361,"Windmill Hill Primary School","Primary",0,0]
[3732133,107022,"Wisewood Community Primary School",null,"72133",2133,null,0,"Primary","Maintained Primary","Forge Valley",null,0,null,3732133,"Wisewood Community Primary School","Maintained Primary","pri",0,null,3732133,"Wisewood Primary School","Primary",0,0]
[3732139,107023,"Woodhouse West Primary School",null,"72139",2139,null,0,"Primary","Maintained Primary","City",null,0,null,3732139,"Woodhouse West Primary School","Maintained Primary","pri",0,null,3732139,"Woodhouse West Primary School","Primary",0,0]
[3732324,107068,"Woodseats Primary School",null,"72324",2324,null,0,"Primary","Maintained Primary","Meadowhead",null,0,null,3732324,"Woodseats Primary School","Maintained Primary","pri",0,null,3732324,"Woodseats Primary School","Primary",0,0]
[3732327,107071,"Woodthorpe Primary School",null,"72327",2327,null,0,"Primary","Maintained Primary","City",null,0,null,3732327,"Woodthorpe Primary School","Maintained Primary","pri",0,null,3732327,"Woodthorpe Community Primary","Primary",0,0]
[3732321,107065,"Wybourn Community Primary and Nursery School",null,"72321",2321,null,0,"Primary","Maintained Primary","Park Academy",null,0,null,3732321,"Wybourn Community Primary and Nursery School","Maintained Primary","pri",0,null,3732321,"Wybourn Community Primary  School","Primary",0,0]
[3735401,138337,"All Saints' Catholic High School",null,"65401",5401,null,"Recoupment Academy","Secondary","Mainstream Academy",0,null,0,null,3735401,"All Saints' Catholic High School","Mainstream Academy","sec",0,null,3735401,"All Saints Catholic High School","Secondary","Recoupment Academy",0]
[3734276,107146,"Birley Community College",null,"74276",4276,null,0,"Secondary","Maintained Secondary",0,null,0,null,3734276,"Birley Community College","Maintained Secondary","sec",0,null,3734276,"Birley Community College","Secondary",0,0]
[3734272,139101,"Bradfield School",null,"64272",4272,null,"Recoupment Academy","Secondary","Mainstream Academy",0,null,0,null,3734272,"Bradfield School","Mainstream Academy","sec",0,null,3734272,"Bradfield School","Secondary","Recoupment Academy",0]
[3734000,138414,"Chaucer School",null,"64000",4000,null,"Recoupment Academy","Secondary","Mainstream Academy",0,null,0,null,3734000,"Chaucer School","Mainstream Academy","sec",0,null,3734000,"Chaucer School","Secondary","Recoupment Academy",0]
[3734270,107142,"Ecclesfield School",null,"64270",4270,null,"Recoupment Academy","Secondary","Mainstream Academy",0,null,0,null,3734270,"Ecclesfield School","Mainstream Academy","sec",0,null,3734270,"Ecclesfield School","Secondary","Recoupment Academy",0]
[3734280,138925,"Fir Vale School",null,"64280",4280,null,"Recoupment Academy","Secondary","Mainstream Academy",0,null,0,null,3734280,"Fir Vale School","Mainstream Academy","sec",0,null,3734280,"Fir Vale School","Secondary","Recoupment Academy",0]
[3734003,139334,"Firth Park Academy",null,"64003",4003,null,"Recoupment Academy","Secondary","Mainstream Academy",0,null,0,null,3734003,"Firth Park Academy","Mainstream Academy","sec",0,null,3734003,"Firth Park Academy","Secondary","Recoupment Academy",0]
[3734007,135503,"Forge Valley Community School",null,"64007",4007,4605,"Recoupment Academy","Secondary","Mainstream Academy",0,null,4605,null,3734007,"Forge Valley Community School","Mainstream Academy","sec",0,null,3734007,"Forge Valley School","Secondary","Recoupment Academy",0]
[3734278,107148,"Handsworth Grange Community Sports College",null,"64278",4278,null,"Recoupment Academy","Secondary","Mainstream Academy",0,null,0,null,3734278,"Handsworth Grange Community Sports College","Mainstream Academy","sec",0,null,3734278,"Handsworth Grange Community Sports College","Secondary","Recoupment Academy",0]
[3734257,107139,"High Storrs School",null,"74257",4257,null,0,"Secondary","Maintained Secondary",0,null,0,null,3734257,"High Storrs School","Maintained Secondary","sec",0,null,3734257,"High Storrs School","Secondary",0,0]
[3734230,138841,"King Ecgbert School",null,"64230",4230,null,"Recoupment Academy","Secondary","Mainstream Academy",0,null,0,null,3734230,"King Ecgbert School","Mainstream Academy","sec",0,null,3734230,"King Ecgbert School","Secondary","Recoupment Academy",0]
[3734259,107140,"King Edward VII School",null,"74259",4259,null,0,"Secondary","Maintained Secondary",0,null,0,null,3734259,"King Edward VII School","Maintained Secondary","sec",0,null,3734259,"KING EDWARD VII","Secondary",0,0]
[3734279,138545,"Meadowhead School Academy Trust",null,"64279",4279,null,"Recoupment Academy","Secondary","Mainstream Academy",0,null,0,null,3734279,"Meadowhead School Academy Trust","Mainstream Academy","sec",0,null,3734279,"Meadowhead School Academy Trust","Secondary","Recoupment Academy",0]
[3734008,107141,"Newfield Secondary School",null,"64008",4008,4260,"Recoupment Academy","Secondary","Mainstream Academy",0,null,4260,null,3734008,"Newfield Secondary School","Mainstream Academy","sec",0,null,3734008,"Newfield","Secondary","Recoupment Academy",0]
[3735400,138361,"Notre Dame High School",null,"65400",5400,null,"Recoupment Academy","Secondary","Mainstream Academy",0,null,0,null,3735400,"Notre Dame High School","Mainstream Academy","sec",0,null,3735400,"Notre Dame High School","Secondary","Recoupment Academy",0]
[3736907,135934,"Parkwood Academy",null,"66907",6907,null,"Recoupment Academy","Secondary","Mainstream Academy",0,null,0,null,3736907,"Parkwood Academy","Mainstream Academy","sec",0,null,3736907,"Parkwood Academy","Secondary","Recoupment Academy",0]
[3736905,null,"Sheffield Park Academy",null,"66905",6905,null,"Recoupment Academy","Secondary","Mainstream Academy",0,null,0,null,3736905,"Sheffield Park Academy","Mainstream Academy","sec",0,null,3736905,"Sheffield Park Academy","Secondary","Non Recoupment Academy",0]
[3736906,null,"Sheffield Springs Academy",null,"66906",6906,null,"Recoupment Academy","Secondary","Mainstream Academy",0,null,0,null,3736906,"Sheffield Springs Academy","Mainstream Academy","sec",0,null,3736906,"Sheffield Springs Academy","Secondary","Non Recoupment Academy",0]
[3734229,139167,"Silverdale School",null,"64229",4229,null,"Recoupment Academy","Secondary","Mainstream Academy",0,null,0,null,3734229,"Silverdale School","Mainstream Academy","sec",0,null,3734229,"Silverdale School","Secondary","Recoupment Academy",0]
[3734271,107143,"Stocksbridge High School",null,"74271",4271,null,0,"Secondary","Maintained Secondary",0,null,0,null,3734271,"Stocksbridge High School","Maintained Secondary","sec",0,null,3734271,"Stocksbridge High","Secondary",0,0]
[3734234,138069,"Tapton School",null,"64234",4234,null,"Recoupment Academy","Secondary","Mainstream Academy",0,null,0,null,3734234,"Tapton School","Mainstream Academy","sec",0,null,3734234,"Tapton","Secondary","Recoupment Academy",0]
[3734006,107122,"The City School",null,"64006",4006,4002,"Recoupment Academy","Secondary","Mainstream Academy",0,null,4002,null,3734006,"The City School","Mainstream Academy","sec",0,null,3734006,"The City School","Secondary","Recoupment Academy",0]
[3734004,null,"UTC Sheffield",null,"64004",4004,null,"Recoupment Academy","Secondary","Mainstream Academy",0,null,0,null,3734004,"UTC Sheffield","Mainstream Academy","sec",0,null,3734004,"UTC Sheffield","Secondary","Non Recoupment Academy",0]
[3734252,107135,"Westfield School",null,"74252",4252,null,0,"Secondary","Maintained Secondary",0,null,0,null,3734252,"Westfield School","Maintained Secondary","sec",0,null,3734252,"Westfield School","Secondary",0,0]
[3734253,137400,"Yewlands Technology College",null,"64253",4253,null,"Recoupment Academy","Secondary","Mainstream Academy",0,null,0,null,3734253,"Yewlands Technology College","Mainstream Academy","sec",0,null,3734253,"Yewlands Academy","Secondary","Recoupment Academy",0]
[3734225,139856,"Hinde House 3-16 School",null,"64225",4225,null,"Recoupment Academy","Middle-deemed Secondary","Mainstream Academy",0,null,0,null,3734225,"Hinde House 3-16 School","Mainstream Academy","sec",0,null,3734225,"Hinde House School","All-through","Recoupment Academy",0]
[3737038,null,"Becton School",null,"77038",7038,null,0,"Special","General Hospital School",null,null,0,null,3737038,"Becton School","General Hospital School","sp",0]
[3737010,null,"Bents Green School",null,"77010",7010,null,0,"Special","Maintained Special",null,null,0,null,3737010,"Bents Green School","Maintained Special","sp",0]
[3737040,null,"Heritage Park Community School",null,"77040",7040,null,0,"Special","Maintained Special",null,null,0,null,3737040,"Heritage Park Community School","Maintained Special","sp",0]
[3737041,null,"Holgate Meadows Community Special School",null,"77041",7041,null,0,"Special","Maintained Special",null,null,0,null,3737041,"Holgate Meadows Community Special School","Maintained Special","sp",0]
[3737036,null,"Mossbrook School",null,"77036",7036,null,0,"Special","Maintained Special",null,null,0,null,3737036,"Mossbrook School","Maintained Special","sp",0]
[3737023,null,"Norfolk Park School",null,"77023",7023,null,0,"Special","Maintained Special",null,null,0,null,3737023,"Norfolk Park School","Maintained Special","sp",0]
[3737043,null,"Seven Hills School",null,"77043",7043,null,0,"Special","Maintained Special",null,null,0,null,3737043,"Seven Hills School","Maintained Special","sp",0]
[3737024,null,"Talbot Specialist School",null,"77024",7024,null,0,"Special","Maintained Special",null,null,0,null,3737024,"Talbot Specialist School","Maintained Special","sp",0]
[3737013,null,"The Rowan School",null,"77013",7013,null,0,"Special","Maintained Special",null,null,0,null,3737013,"The Rowan School","Maintained Special","sp",0]
[3737026,null,"Woolley Wood School",null,"77026",7026,null,0,"Special","Maintained Special",null,null,0,null,3737026,"Woolley Wood School","Maintained Special","sp",0]
[3731100,null,"Sheffield Inclusion Centre",null,"71100",1100,null,0,"Special","Pupil Referral Unit",null,null,0,null,3731100,"Sheffield Inclusion Centre","Pupil Referral Unit","sp",0]